[Event "Titled Tuesday Blitz April 25 Early 2023"]
[White "Van Foreest, Jorden"]
[Black "Korelskiy, Egor"]
[WhiteFideId "1039784"]
[BlackFideId "34329064"]
[WhiteElo "2633"]
[BlackElo "2186"]
[Result "1-0"]
[Round "01"]
[TimeControl "180+2"]
[Date "2023.04.25"]
[WhiteClock "0:00:54"]
[BlackClock "0:00:06"]

1. d4 {[%clk 0:02:42]}  d5 {[%clk 0:02:58]} 2. Nf3 {[%clk 0:02:23]}  e6 {[%clk 0:02:56]} 3. Bf4 {[%clk 0:02:21]}  Nf6 {[%clk 0:02:55]} 4. e3 {[%clk 0:02:21]}  c5 {[%clk 0:02:55]} 5. Nbd2 {[%clk 0:02:21]}  Nc6 {[%clk 0:02:55]} 6. c3 {[%clk 0:02:20]}  Bd6 {[%clk 0:02:54]} 7. Bg3 {[%clk 0:02:20]}  O-O {[%clk 0:02:48]} 8. Bd3 {[%clk 0:02:19]}  Qe7 {[%clk 0:02:36]} 9. Ne5 {[%clk 0:02:16]}  Bxe5 {[%clk 0:02:02]} 10. dxe5 {[%clk 0:02:12]}  Nd7 {[%clk 0:01:58]} 11. Nf3 {[%clk 0:02:12]}  f5 {[%clk 0:01:52]} 12. exf6 {[%clk 0:02:01]}  Nxf6 {[%clk 0:01:49]} 13. c4 {[%clk 0:01:57]}  Rd8 {[%clk 0:01:43]} 14. Qe2 {[%clk 0:01:51]}  Nb4 {[%clk 0:01:30]} 15. Bb1 {[%clk 0:01:48]}  b6 {[%clk 0:01:24]} 16. a3 {[%clk 0:01:45]}  Nc6 {[%clk 0:01:21]} 17. O-O {[%clk 0:01:44]}  Ba6 {[%clk 0:01:18]} 18. Bd3 {[%clk 0:01:41]}  Na5 {[%clk 0:00:58]} 19. cxd5 {[%clk 0:01:39]}  Bxd3 {[%clk 0:00:55]} 20. Qxd3 {[%clk 0:01:40]}  exd5 {[%clk 0:00:54]} 21. b4 {[%clk 0:01:38]}  Nc4 {[%clk 0:00:48]} 22. bxc5 {[%clk 0:01:28]}  bxc5 {[%clk 0:00:44]} 23. Rab1 {[%clk 0:01:28]}  Ne4 {[%clk 0:00:37]} 24. Bh4 {[%clk 0:01:27]}  g5 {[%clk 0:00:20]} 25. Bg3 {[%clk 0:01:27]}  h5 {[%clk 0:00:19]} 26. h4 {[%clk 0:00:58]}  g4 {[%clk 0:00:18]} 27. Ng5 {[%clk 0:00:57]}  Nxg5 {[%clk 0:00:14]} 28. hxg5 {[%clk 0:00:55]}  Qxg5 {[%clk 0:00:13]} 29. Rb7 {[%clk 0:00:56]}  Qh6 {[%clk 0:00:06]} 30. Bf4 {[%clk 0:00:54]} 1-0


[Site "https://www.chess.com"]

[Event "Titled Tuesday Blitz April 25 Early 2023"]
[White "Kramnik, Vladimir"]
[Black "Begunov, Konstantin"]
[WhiteFideId "4101588"]
[BlackFideId "4118510"]
[WhiteElo "2712"]
[BlackElo "2087"]
[Result "1-0"]
[Round "01"]
[TimeControl "180+2"]
[Date "2023.04.25"]
[WhiteClock "0:01:09"]
[BlackClock "0:00:09"]

1. Nf3 {[%clk 0:02:58]}  d5 {[%clk 0:02:59]} 2. g3 {[%clk 0:02:59]}  c6 {[%clk 0:02:59]} 3. Bg2 {[%clk 0:02:58]}  Bg4 {[%clk 0:02:59]} 4. d3 {[%clk 0:02:57]}  Nd7 {[%clk 0:02:59]} 5. h3 {[%clk 0:02:55]}  Bh5 {[%clk 0:02:58]} 6. O-O {[%clk 0:02:53]}  e5 {[%clk 0:02:58]} 7. e4 {[%clk 0:02:53]}  dxe4 {[%clk 0:02:58]} 8. dxe4 {[%clk 0:02:51]}  Bc5 {[%clk 0:02:58]} 9. Nbd2 {[%clk 0:02:45]}  Qe7 {[%clk 0:02:57]} 10. Nb3 {[%clk 0:02:42]}  Bb6 {[%clk 0:02:54]} 11. a4 {[%clk 0:02:43]}  a5 {[%clk 0:02:49]} 12. Qe1 {[%clk 0:02:42]}  Bxf3 {[%clk 0:02:42]} 13. Bxf3 {[%clk 0:02:41]}  Nc5 {[%clk 0:02:41]} 14. Ra3 {[%clk 0:02:33]}  Na6 {[%clk 0:02:20]} 15. Nd2 {[%clk 0:02:27]}  Bc5 {[%clk 0:02:01]} 16. Rb3 {[%clk 0:02:21]}  Bb4 {[%clk 0:01:42]} 17. c3 {[%clk 0:02:20]}  Bc5 {[%clk 0:01:36]} 18. Nc4 {[%clk 0:02:19]}  Nf6 {[%clk 0:01:22]} 19. Nxa5 {[%clk 0:02:13]}  Bxf2+ {[%clk 0:00:43]} 20. Qxf2 {[%clk 0:02:06]}  Nc5 {[%clk 0:00:43]} 21. Ra3 {[%clk 0:01:47]}  Rxa5 {[%clk 0:00:40]} 22. b4 {[%clk 0:01:43]}  Nd3 {[%clk 0:00:40]} 23. Qe3 {[%clk 0:01:36]}  Nxc1 {[%clk 0:00:37]} 24. Qxc1 {[%clk 0:01:34]}  Ra8 {[%clk 0:00:30]} 25. a5 {[%clk 0:01:33]}  O-O {[%clk 0:00:30]} 26. Ra2 {[%clk 0:01:33]}  Rfd8 {[%clk 0:00:28]} 27. Rd1 {[%clk 0:01:32]}  Rxd1+ {[%clk 0:00:20]} 28. Qxd1 {[%clk 0:01:31]}  Qe6 {[%clk 0:00:21]} 29. Rd2 {[%clk 0:01:29]}  Qxh3 {[%clk 0:00:17]} 30. Rd8+ {[%clk 0:01:23]}  Ne8 {[%clk 0:00:17]} 31. Rxa8 {[%clk 0:01:19]}  Qxg3+ {[%clk 0:00:17]} 32. Kf1 {[%clk 0:01:16]}  Qh3+ {[%clk 0:00:14]} 33. Bg2 {[%clk 0:01:12]}  Qe6 {[%clk 0:00:11]} 34. Qd8 {[%clk 0:01:10]}  Qc4+ {[%clk 0:00:09]} 35. Kg1 {[%clk 0:01:09]} 1-0


[Site "https://www.chess.com"]

[Event "Titled Tuesday Blitz April 25 Early 2023"]
[White "Yurasova, Daria"]
[Black "Gupta, Abhijeet"]
[WhiteFideId "34146919"]
[BlackFideId "5010608"]
[WhiteElo "2134"]
[BlackElo "2528"]
[Result "0-1"]
[Round "01"]
[TimeControl "180+2"]
[Date "2023.04.25"]
[WhiteClock "0:00:09"]
[BlackClock "0:00:23"]

1. e4 {[%clk 0:02:58]}  c5 {[%clk 0:02:59]} 2. Nf3 {[%clk 0:02:58]}  d6 {[%clk 0:02:59]} 3. d4 {[%clk 0:02:58]}  cxd4 {[%clk 0:03:00]} 4. Nxd4 {[%clk 0:02:59]}  Nf6 {[%clk 0:03:01]} 5. Nc3 {[%clk 0:02:59]}  Nc6 {[%clk 0:03:02]} 6. Be2 {[%clk 0:02:50]}  e5 {[%clk 0:03:00]} 7. Nf3 {[%clk 0:02:48]}  h6 {[%clk 0:03:00]} 8. O-O {[%clk 0:02:48]}  Be7 {[%clk 0:02:59]} 9. h3 {[%clk 0:02:42]}  O-O {[%clk 0:02:59]} 10. Be3 {[%clk 0:02:41]}  Be6 {[%clk 0:02:48]} 11. Qd2 {[%clk 0:02:41]}  a6 {[%clk 0:02:37]} 12. Rfd1 {[%clk 0:02:37]}  b5 {[%clk 0:02:34]} 13. a3 {[%clk 0:02:36]}  Rc8 {[%clk 0:02:26]} 14. Rac1 {[%clk 0:02:35]}  Na5 {[%clk 0:02:26]} 15. Qe1 {[%clk 0:02:27]}  Qc7 {[%clk 0:02:15]} 16. Nd2 {[%clk 0:02:22]}  Qb7 {[%clk 0:02:12]} 17. Bf3 {[%clk 0:02:08]}  Rxc3 {[%clk 0:01:56]} 18. bxc3 {[%clk 0:02:08]}  Rc8 {[%clk 0:01:57]} 19. c4 {[%clk 0:01:56]}  Nxc4 {[%clk 0:01:49]} 20. Nxc4 {[%clk 0:01:56]}  Rxc4 {[%clk 0:01:50]} 21. Bd2 {[%clk 0:01:33]}  Nxe4 {[%clk 0:01:47]} 22. Bb4 {[%clk 0:01:33]}  d5 {[%clk 0:01:41]} 23. Bxe7 {[%clk 0:01:32]}  Qxe7 {[%clk 0:01:42]} 24. Bxe4 {[%clk 0:01:30]}  Rxe4 {[%clk 0:01:40]} 25. Qc3 {[%clk 0:01:30]}  f6 {[%clk 0:01:33]} 26. Qa5 {[%clk 0:01:23]}  Ra4 {[%clk 0:01:33]} 27. Qb6 {[%clk 0:01:17]}  Kh7 {[%clk 0:01:29]} 28. Rd3 {[%clk 0:00:57]}  d4 {[%clk 0:01:25]} 29. Rg3 {[%clk 0:00:46]}  Bf5 {[%clk 0:01:15]} 30. Qc6 {[%clk 0:00:25]}  Rxa3 {[%clk 0:01:05]} 31. Rxa3 {[%clk 0:00:26]}  Qxa3 {[%clk 0:01:05]} 32. Re1 {[%clk 0:00:18]}  Qc3 {[%clk 0:01:03]} 33. Qxc3 {[%clk 0:00:16]}  dxc3 {[%clk 0:01:04]} 34. Ra1 {[%clk 0:00:09]}  b4 {[%clk 0:01:01]} 35. Ra2 {[%clk 0:00:06]}  a5 {[%clk 0:00:47]} 36. Kf1 {[%clk 0:00:06]}  b3 {[%clk 0:00:26]} 37. cxb3 {[%clk 0:00:06]}  c2 {[%clk 0:00:26]} 38. Ra1 {[%clk 0:00:06]}  Be6 {[%clk 0:00:25]} 39. Ke1 {[%clk 0:00:05]}  Bxb3 {[%clk 0:00:26]} 40. Kd2 {[%clk 0:00:06]}  a4 {[%clk 0:00:27]} 41. Kc1 {[%clk 0:00:06]}  Kg6 {[%clk 0:00:27]} 42. Kb2 {[%clk 0:00:07]}  Kf5 {[%clk 0:00:27]} 43. Re1 {[%clk 0:00:07]}  h5 {[%clk 0:00:26]} 44. Re3 {[%clk 0:00:08]}  h4 {[%clk 0:00:26]} 45. Rc3 {[%clk 0:00:08]}  g5 {[%clk 0:00:27]} 46. Rc6 {[%clk 0:00:08]}  Bd5 {[%clk 0:00:26]} 47. Rxc2 {[%clk 0:00:06]}  Bxg2 {[%clk 0:00:26]} 48. Rc3 {[%clk 0:00:07]}  g4 {[%clk 0:00:22]} 49. hxg4+ {[%clk 0:00:07]}  Kxg4 {[%clk 0:00:23]} 50. Rc8 {[%clk 0:00:07]}  h3 {[%clk 0:00:23]} 51. Rh8 {[%clk 0:00:07]}  Kf3 {[%clk 0:00:22]} 52. Ka3 {[%clk 0:00:08]}  Kxf2 {[%clk 0:00:23]} 53. Kxa4 {[%clk 0:00:09]}  Kg1 {[%clk 0:00:23]} 0-1


[Site "https://www.chess.com"]

[Event "Titled Tuesday Blitz April 25 Early 2023"]
[White "Garcia Almaguer, Juan Manuel"]
[Black "Steinberg, Nitzan"]
[WhiteFideId "5110491"]
[BlackFideId "2801795"]
[WhiteElo "2117"]
[BlackElo "2486"]
[Result "0-1"]
[Round "01"]
[TimeControl "180+2"]
[Date "2023.04.25"]
[WhiteClock "0:00:08"]
[BlackClock "0:00:26"]

1. e4 {[%clk 0:02:15]}  c5 {[%clk 0:02:59]} 2. Nf3 {[%clk 0:02:14]}  e6 {[%clk 0:02:59]} 3. d4 {[%clk 0:02:13]}  cxd4 {[%clk 0:03:00]} 4. Nxd4 {[%clk 0:02:13]}  Nc6 {[%clk 0:03:01]} 5. Nc3 {[%clk 0:02:14]}  Qc7 {[%clk 0:03:01]} 6. Be2 {[%clk 0:02:14]}  a6 {[%clk 0:03:02]} 7. Be3 {[%clk 0:02:14]}  Nf6 {[%clk 0:03:02]} 8. a3 {[%clk 0:02:11]}  Be7 {[%clk 0:03:00]} 9. g4 {[%clk 0:02:09]}  h6 {[%clk 0:02:56]} 10. h4 {[%clk 0:02:09]}  b5 {[%clk 0:02:55]} 11. Rg1 {[%clk 0:02:07]}  Nxd4 {[%clk 0:02:47]} 12. Bxd4 {[%clk 0:02:03]}  Bb7 {[%clk 0:02:47]} 13. Bf3 {[%clk 0:01:59]}  e5 {[%clk 0:02:39]} 14. Be3 {[%clk 0:01:56]}  b4 {[%clk 0:02:40]} 15. axb4 {[%clk 0:01:50]}  Bxb4 {[%clk 0:02:40]} 16. Qd3 {[%clk 0:01:48]}  Rc8 {[%clk 0:02:23]} 17. g5 {[%clk 0:01:38]}  hxg5 {[%clk 0:02:23]} 18. hxg5 {[%clk 0:01:36]}  Nh5 {[%clk 0:02:23]} 19. O-O-O {[%clk 0:01:21]}  Bxc3 {[%clk 0:02:15]} 20. bxc3 {[%clk 0:01:21]}  Nf4 {[%clk 0:01:57]} 21. Bxf4 {[%clk 0:01:18]}  exf4 {[%clk 0:01:58]} 22. g6 {[%clk 0:01:14]}  O-O {[%clk 0:01:45]} 23. Kd2 {[%clk 0:00:45]}  Qe5 {[%clk 0:01:38]} 24. Qd4 {[%clk 0:00:42]}  d6 {[%clk 0:01:37]} 25. Rb1 {[%clk 0:00:34]}  Rc7 {[%clk 0:01:34]} 26. Rb6 {[%clk 0:00:32]}  Rd8 {[%clk 0:01:29]} 27. Rgb1 {[%clk 0:00:22]}  Bc8 {[%clk 0:01:29]} 28. Rb8 {[%clk 0:00:20]}  fxg6 {[%clk 0:01:22]} 29. R1b6 {[%clk 0:00:16]}  Kf8 {[%clk 0:01:09]} 30. Be2 {[%clk 0:00:12]}  Ke7 {[%clk 0:01:04]} 31. Bxa6 {[%clk 0:00:11]}  Qxd4+ {[%clk 0:00:45]} 32. cxd4 {[%clk 0:00:11]}  g5 {[%clk 0:00:41]} 33. c3 {[%clk 0:00:09]}  g4 {[%clk 0:00:41]} 34. Bxc8 {[%clk 0:00:08]}  Rdxc8 {[%clk 0:00:41]} 35. Rxc8 {[%clk 0:00:08]}  Rxc8 {[%clk 0:00:42]} 36. Rb7+ {[%clk 0:00:09]}  Kf6 {[%clk 0:00:42]} 37. Kd3 {[%clk 0:00:09]}  Rh8 {[%clk 0:00:41]} 38. e5+ {[%clk 0:00:08]}  dxe5 {[%clk 0:00:38]} 39. dxe5+ {[%clk 0:00:09]}  Kxe5 {[%clk 0:00:31]} 40. Rxg7 {[%clk 0:00:08]}  Rh3+ {[%clk 0:00:30]} 41. Ke2 {[%clk 0:00:07]}  Kf5 {[%clk 0:00:29]} 42. Rf7+ {[%clk 0:00:07]}  Ke4 {[%clk 0:00:30]} 43. Re7+ {[%clk 0:00:08]}  Kd5 {[%clk 0:00:30]} 44. Rg7 {[%clk 0:00:08]}  Rxc3 {[%clk 0:00:25]} 45. Rxg4 {[%clk 0:00:09]}  Ke4 {[%clk 0:00:26]} 46. Kf1 {[%clk 0:00:08]}  Kf3 {[%clk 0:00:26]} 0-1


[Site "https://www.chess.com"]

[Event "Titled Tuesday Blitz April 25 Early 2023"]
[White "Henriquez Villagra, Cristobal"]
[Black "Ljukin, Sergei"]
[WhiteFideId "3409350"]
[BlackFideId "14102200"]
[WhiteElo "2542"]
[BlackElo "2312"]
[Result "0-1"]
[Round "01"]
[TimeControl "180+2"]
[Date "2023.04.25"]
[WhiteClock "0:00:29"]
[BlackClock "0:00:19"]

1. e4 {[%clk 0:02:57]}  e6 {[%clk 0:02:52]} 2. d4 {[%clk 0:02:55]}  d5 {[%clk 0:02:53]} 3. Nc3 {[%clk 0:02:54]}  Bb4 {[%clk 0:02:52]} 4. exd5 {[%clk 0:02:52]}  exd5 {[%clk 0:02:52]} 5. Bd3 {[%clk 0:02:51]}  Nf6 {[%clk 0:02:52]} 6. h3 {[%clk 0:02:48]}  O-O {[%clk 0:02:48]} 7. Qf3 {[%clk 0:02:48]}  Ne4 {[%clk 0:02:45]} 8. Ne2 {[%clk 0:02:46]}  f5 {[%clk 0:02:34]} 9. a3 {[%clk 0:02:45]}  Be7 {[%clk 0:02:24]} 10. Bf4 {[%clk 0:02:24]}  c6 {[%clk 0:02:23]} 11. h4 {[%clk 0:02:06]}  Nd7 {[%clk 0:02:22]} 12. h5 {[%clk 0:02:00]}  Ndf6 {[%clk 0:02:15]} 13. h6 {[%clk 0:01:40]}  g6 {[%clk 0:01:49]} 14. Qe3 {[%clk 0:01:30]}  Ng4 {[%clk 0:01:45]} 15. Qf3 {[%clk 0:01:19]}  Nexf2 {[%clk 0:01:31]} 16. Rf1 {[%clk 0:01:00]}  Ne4 {[%clk 0:01:31]} 17. O-O-O {[%clk 0:01:00]}  b5 {[%clk 0:01:28]} 18. Bxe4 {[%clk 0:00:59]}  fxe4 {[%clk 0:01:27]} 19. Qg3 {[%clk 0:00:59]}  b4 {[%clk 0:01:25]} 20. axb4 {[%clk 0:00:59]}  Bxb4 {[%clk 0:01:23]} 21. Be5 {[%clk 0:00:55]}  Bf5 {[%clk 0:01:16]} 22. Bg7 {[%clk 0:00:55]}  Rf7 {[%clk 0:01:14]} 23. Rf4 {[%clk 0:00:55]}  Qd7 {[%clk 0:00:59]} 24. Na4 {[%clk 0:00:52]}  Bd6 {[%clk 0:00:58]} 25. Nc5 {[%clk 0:00:53]}  Qe7 {[%clk 0:00:54]} 26. Rdf1 {[%clk 0:00:51]}  Bxf4+ {[%clk 0:00:46]} 27. Rxf4 {[%clk 0:00:51]}  Qg5 {[%clk 0:00:42]} 28. Kb1 {[%clk 0:00:51]}  a5 {[%clk 0:00:29]} 29. Ka2 {[%clk 0:00:48]}  a4 {[%clk 0:00:28]} 30. Nc3 {[%clk 0:00:47]}  a3 {[%clk 0:00:27]} 31. bxa3 {[%clk 0:00:46]}  e3 {[%clk 0:00:26]} 32. Nd3 {[%clk 0:00:38]}  Bxd3 {[%clk 0:00:25]} 33. Rxf7 {[%clk 0:00:34]}  Bc4+ {[%clk 0:00:24]} 34. Ka1 {[%clk 0:00:29]}  Kxf7 {[%clk 0:00:20]} 35. Qc7+ {[%clk 0:00:29]}  Qe7 {[%clk 0:00:21]} 36. Qxc6 {[%clk 0:00:29]}  Qxa3+ {[%clk 0:00:19]} 0-1


[Site "https://www.chess.com"]

[Event "Titled Tuesday Blitz April 25 Early 2023"]
[White "Karamsetty, Jeevan"]
[Black "Gukesh D"]
[WhiteFideId "2025337"]
[BlackFideId "46616543"]
[WhiteElo "2111"]
[BlackElo "2612"]
[Result "0-1"]
[Round "01"]
[TimeControl "180+2"]
[Date "2023.04.25"]
[WhiteClock "0:01:08"]
[BlackClock "0:01:22"]

1. e4 {[%clk 0:03:00]}  c5 {[%clk 0:02:59]} 2. Nc3 {[%clk 0:03:00]}  Nc6 {[%clk 0:02:58]} 3. Bb5 {[%clk 0:03:00]}  Nd4 {[%clk 0:02:58]} 4. Bc4 {[%clk 0:03:01]}  e6 {[%clk 0:02:58]} 5. Nge2 {[%clk 0:03:01]}  Nf6 {[%clk 0:02:58]} 6. O-O {[%clk 0:02:56]}  a6 {[%clk 0:02:57]} 7. a4 {[%clk 0:02:56]}  Qc7 {[%clk 0:02:52]} 8. d3 {[%clk 0:02:52]}  Nc6 {[%clk 0:02:45]} 9. f4 {[%clk 0:02:39]}  d6 {[%clk 0:02:45]} 10. Ng3 {[%clk 0:02:28]}  g6 {[%clk 0:02:41]} 11. f5 {[%clk 0:02:26]}  Bg7 {[%clk 0:02:38]} 12. Bg5 {[%clk 0:02:21]}  O-O {[%clk 0:02:35]} 13. Qd2 {[%clk 0:02:06]}  Ne5 {[%clk 0:02:34]} 14. Ba2 {[%clk 0:02:03]}  Bd7 {[%clk 0:02:31]} 15. Bh6 {[%clk 0:01:57]}  b5 {[%clk 0:02:20]} 16. h4 {[%clk 0:01:41]}  Bxh6 {[%clk 0:02:09]} 17. Qxh6 {[%clk 0:01:42]}  Neg4 {[%clk 0:01:56]} 18. Qg5 {[%clk 0:01:37]}  d5 {[%clk 0:01:43]} 19. Rf3 {[%clk 0:01:23]}  b4 {[%clk 0:01:40]} 20. Nce2 {[%clk 0:01:20]}  c4 {[%clk 0:01:29]} 21. h5 {[%clk 0:01:08]}  h6 {[%clk 0:01:22]} 0-1


[Site "https://www.chess.com"]

[Event "Titled Tuesday Blitz April 25 Early 2023"]
[White "Timofeev, Artyom"]
[Black "Toncheva, Nadya"]
[WhiteFideId "4140419"]
[BlackFideId "2924056"]
[WhiteElo "2586"]
[BlackElo "2101"]
[Result "1/2-1/2"]
[Round "01"]
[TimeControl "180+2"]
[Date "2023.04.25"]
[WhiteClock "0:00:03"]
[BlackClock "0:00:10"]

1. c4 {[%clk 0:02:53]}  c6 {[%clk 0:02:59]} 2. e4 {[%clk 0:02:50]}  d5 {[%clk 0:02:57]} 3. exd5 {[%clk 0:02:50]}  cxd5 {[%clk 0:02:58]} 4. d4 {[%clk 0:02:49]}  Nf6 {[%clk 0:02:56]} 5. Nc3 {[%clk 0:02:49]}  e6 {[%clk 0:02:54]} 6. Nf3 {[%clk 0:02:47]}  Be7 {[%clk 0:02:52]} 7. Bd3 {[%clk 0:02:46]}  dxc4 {[%clk 0:02:51]} 8. Bxc4 {[%clk 0:02:46]}  Nc6 {[%clk 0:02:51]} 9. O-O {[%clk 0:02:45]}  O-O {[%clk 0:02:51]} 10. Re1 {[%clk 0:02:44]}  a6 {[%clk 0:02:49]} 11. Bg5 {[%clk 0:02:32]}  b5 {[%clk 0:02:45]} 12. Bb3 {[%clk 0:02:31]}  Bb7 {[%clk 0:02:44]} 13. Rc1 {[%clk 0:02:05]}  Rc8 {[%clk 0:02:34]} 14. Bc2 {[%clk 0:01:58]}  Nb4 {[%clk 0:02:29]} 15. Bb1 {[%clk 0:01:57]}  Nbd5 {[%clk 0:02:14]} 16. Qd3 {[%clk 0:01:54]}  g6 {[%clk 0:02:14]} 17. Ne5 {[%clk 0:01:48]}  b4 {[%clk 0:02:01]} 18. Na4 {[%clk 0:01:33]}  Rxc1 {[%clk 0:01:30]} 19. Rxc1 {[%clk 0:01:33]}  Nd7 {[%clk 0:01:25]} 20. Bxe7 {[%clk 0:01:25]}  Qxe7 {[%clk 0:01:23]} 21. g3 {[%clk 0:01:21]}  Qd6 {[%clk 0:01:13]} 22. Nxd7 {[%clk 0:01:16]}  Qxd7 {[%clk 0:00:59]} 23. Nc5 {[%clk 0:01:16]}  Qc6 {[%clk 0:00:54]} 24. Qf3 {[%clk 0:01:12]}  Ba8 {[%clk 0:00:43]} 25. Be4 {[%clk 0:01:11]}  Qd6 {[%clk 0:00:40]} 26. h4 {[%clk 0:01:07]}  f5 {[%clk 0:00:40]} 27. Bxd5 {[%clk 0:01:05]}  Bxd5 {[%clk 0:00:39]} 28. Qf4 {[%clk 0:01:01]}  Qxf4 {[%clk 0:00:34]} 29. gxf4 {[%clk 0:01:01]}  Rc8 {[%clk 0:00:34]} 30. b3 {[%clk 0:01:00]}  a5 {[%clk 0:00:34]} 31. Re1 {[%clk 0:00:56]}  Kf7 {[%clk 0:00:34]} 32. Kf1 {[%clk 0:00:54]}  h6 {[%clk 0:00:32]} 33. Ke2 {[%clk 0:00:53]}  Rc7 {[%clk 0:00:27]} 34. Ke3 {[%clk 0:00:52]}  Kf6 {[%clk 0:00:27]} 35. Rc1 {[%clk 0:00:51]}  Rh7 {[%clk 0:00:21]} 36. Nd3 {[%clk 0:00:49]}  g5 {[%clk 0:00:21]} 37. hxg5+ {[%clk 0:00:48]}  hxg5 {[%clk 0:00:22]} 38. fxg5+ {[%clk 0:00:47]}  Kxg5 {[%clk 0:00:23]} 39. Rg1+ {[%clk 0:00:43]}  Kf6 {[%clk 0:00:23]} 40. Nf4 {[%clk 0:00:37]}  Be4 {[%clk 0:00:23]} 41. f3 {[%clk 0:00:35]}  Bd5 {[%clk 0:00:22]} 42. Rg2 {[%clk 0:00:32]}  Rh1 {[%clk 0:00:21]} 43. Rc2 {[%clk 0:00:23]}  Re1+ {[%clk 0:00:20]} 44. Kf2 {[%clk 0:00:22]}  Ra1 {[%clk 0:00:18]} 45. Kg3 {[%clk 0:00:20]}  Rg1+ {[%clk 0:00:17]} 46. Kf2 {[%clk 0:00:19]}  Ra1 {[%clk 0:00:17]} 47. Ke3 {[%clk 0:00:18]}  Re1+ {[%clk 0:00:17]} 48. Re2 {[%clk 0:00:17]}  Rxe2+ {[%clk 0:00:14]} 49. Nxe2 {[%clk 0:00:17]}  a4 {[%clk 0:00:13]} 50. bxa4 {[%clk 0:00:15]}  Bxa2 {[%clk 0:00:13]} 51. a5 {[%clk 0:00:15]}  b3 {[%clk 0:00:11]} 52. Nc3 {[%clk 0:00:12]}  b2 {[%clk 0:00:11]} 53. a6 {[%clk 0:00:12]}  Bd5 {[%clk 0:00:06]} 54. a7 {[%clk 0:00:09]}  Bb7 {[%clk 0:00:06]} 55. f4 {[%clk 0:00:09]}  Ke7 {[%clk 0:00:06]} 56. Kd2 {[%clk 0:00:09]}  Kd6 {[%clk 0:00:06]} 57. Kc2 {[%clk 0:00:09]}  Kc7 {[%clk 0:00:05]} 58. Kxb2 {[%clk 0:00:09]}  Kb6 {[%clk 0:00:06]} 59. Na4+ {[%clk 0:00:09]}  Kxa7 {[%clk 0:00:06]} 60. Nc5 {[%clk 0:00:09]}  Bd5 {[%clk 0:00:07]} 61. Kc3 {[%clk 0:00:10]}  Kb6 {[%clk 0:00:07]} 62. Kb4 {[%clk 0:00:10]}  Kc6 {[%clk 0:00:08]} 63. Kc3 {[%clk 0:00:10]}  Ba2 {[%clk 0:00:08]} 64. Kd3 {[%clk 0:00:09]}  Kd5 {[%clk 0:00:08]} 65. Ke3 {[%clk 0:00:10]}  Bc4 {[%clk 0:00:09]} 66. Nd7 {[%clk 0:00:10]}  Kd6 {[%clk 0:00:08]} 67. Ne5 {[%clk 0:00:10]}  Bd5 {[%clk 0:00:08]} 68. Kd3 {[%clk 0:00:10]}  Be4+ {[%clk 0:00:08]} 69. Kc4 {[%clk 0:00:10]}  Bd5+ {[%clk 0:00:09]} 70. Kc3 {[%clk 0:00:10]}  Be4 {[%clk 0:00:09]} 71. Nc4+ {[%clk 0:00:08]}  Kc6 {[%clk 0:00:08]} 72. Ne3 {[%clk 0:00:08]}  Kd6 {[%clk 0:00:07]} 73. Kb4 {[%clk 0:00:08]}  Bf3 {[%clk 0:00:07]} 74. Kb5 {[%clk 0:00:08]}  Bc6+ {[%clk 0:00:07]} 75. Kb6 {[%clk 0:00:08]}  Be4 {[%clk 0:00:08]} 76. Kb5 {[%clk 0:00:07]}  Bc6+ {[%clk 0:00:08]} 77. Kc4 {[%clk 0:00:08]}  Be4 {[%clk 0:00:08]} 78. Kc3 {[%clk 0:00:07]}  Bc6 {[%clk 0:00:08]} 79. Kd3 {[%clk 0:00:06]}  Be4+ {[%clk 0:00:09]} 80. Ke2 {[%clk 0:00:06]}  Bc6 {[%clk 0:00:09]} 81. Kf2 {[%clk 0:00:07]}  Be4 {[%clk 0:00:08]} 82. Kg3 {[%clk 0:00:07]}  Kc6 {[%clk 0:00:08]} 83. Kh4 {[%clk 0:00:07]}  Kd6 {[%clk 0:00:06]} 84. Kg5 {[%clk 0:00:07]}  Ke7 {[%clk 0:00:07]} 85. Nc4 {[%clk 0:00:06]}  Bd5 {[%clk 0:00:06]} 86. Ne5 {[%clk 0:00:05]}  Bb3 {[%clk 0:00:06]} 87. Kg6 {[%clk 0:00:05]}  Ba2 {[%clk 0:00:06]} 88. Nf3 {[%clk 0:00:05]}  Bd5 {[%clk 0:00:06]} 89. Ng5 {[%clk 0:00:05]}  Ba2 {[%clk 0:00:06]} 90. Nf3 {[%clk 0:00:05]}  Bd5 {[%clk 0:00:06]} 91. Ne5 {[%clk 0:00:05]}  Ba2 {[%clk 0:00:07]} 92. Nd3 {[%clk 0:00:05]}  Bd5 {[%clk 0:00:07]} 93. Nb4 {[%clk 0:00:05]}  Bc4 {[%clk 0:00:07]} 94. Nc6+ {[%clk 0:00:05]}  Kd6 {[%clk 0:00:08]} 95. Ne5 {[%clk 0:00:05]}  Ba2 {[%clk 0:00:08]} 96. Kf6 {[%clk 0:00:05]}  Kd5 {[%clk 0:00:09]} 97. Nf3 {[%clk 0:00:05]}  Ke4 {[%clk 0:00:09]} 98. Ng5+ {[%clk 0:00:05]}  Kxd4 {[%clk 0:00:09]} 99. Nh3 {[%clk 0:00:01]}  Ke4 {[%clk 0:00:08]} 100. Kg5 {[%clk 0:00:01]}  Bd5 {[%clk 0:00:07]} 101. Nf2+ {[%clk 0:00:01]}  Kf3 {[%clk 0:00:07]} 102. Nd1 {[%clk 0:00:02]}  Bb3 {[%clk 0:00:06]} 103. Nc3 {[%clk 0:00:02]}  Kg3 {[%clk 0:00:06]} 104. Nb5 {[%clk 0:00:02]}  Bd5 {[%clk 0:00:06]} 105. Nd4 {[%clk 0:00:02]}  Kf2 {[%clk 0:00:04]} 106. Nb5 {[%clk 0:00:02]}  Bc4 {[%clk 0:00:04]} 107. Nd6 {[%clk 0:00:02]}  Bd5 {[%clk 0:00:04]} 108. Nxf5 {[%clk 0:00:03]}  exf5 {[%clk 0:00:04]} 109. Kxf5 {[%clk 0:00:03]}  Bb3 {[%clk 0:00:05]} 110. Ke5 {[%clk 0:00:03]}  Ba2 {[%clk 0:00:06]} 111. f5 {[%clk 0:00:03]}  Bb3 {[%clk 0:00:07]} 112. f6 {[%clk 0:00:03]}  Ba2 {[%clk 0:00:08]} 113. Kd6 {[%clk 0:00:03]}  Bf7 {[%clk 0:00:08]} 114. Ke7 {[%clk 0:00:03]}  Ba2 {[%clk 0:00:09]} 115. f7 {[%clk 0:00:03]}  Bxf7 {[%clk 0:00:10]} 1/2-1/2


[Site "https://www.chess.com"]